bitfinex-derivatives/quotes_BNBF0:USTF0_20250424
["timestamp","ask_amount","ask_price","bid_price","bid_amount"]
[1745492356453,1.27288941,599.18,597.68,2.436]
[1745492356653,0.29085438,599.17,597.69,0.30720035]
[1745492356856,1.27288941,599.09,597.69,0.30720035]
[1745492357658,1.27288941,599.09,597.7,1.251]
[1745492357956,1.27288941,599.09,597.71,0.30720035]
[1745492358750,1.27288941,599.09,597.7,1.251]
[1745492359648,0.29086289,599.08,597.7,1.251]
[1745492361761,1.27288941,598.99,597.7,1.251]
[1745492362155,1.27288941,598.99,597.71,1.262]
[1745492364859,2.1656799,599.51,597.71,1.262]
[1745492364860,0.29086168,598.98,597.71,1.262]
[1745492367468,1.27288941,599.31,597.72,1.533]
[1745492368658,0.29083858,599.3,597.72,1.533]
[1745492370466,1.27288941,599.34,597.72,1.533]
[1745492371666,0.29083494,599.33,597.72,1.533]
[1745492372371,1.56372435,599.33,597.72,1.533]
[1745492373668,1.27288941,599.33,597.72,1.533]
[1745492374675,1.27288941,599.23,597.72,1.533]
[1745492377676,0.29084831,599.22,597.72,1.533]
[1745492379374,1.27288941,598.98,597.72,1.533]
[1745492380677,0.2908787,598.97,597.72,1.533]
[1745492382176,1.56376811,598.97,597.72,1.533]
[1745492382471,1.27288941,598.97,597.72,1.533]
[1745492383482,1.27288941,598.97,597.71,1.262]
[1745492383673,0.29087991,598.96,597.71,1.262]
[1745492387381,0.29087991,598.96,597.72,1.54]
[1745492387575,0.29087991,598.96,597.72,2.68]
[1745492388375,1.27288941,599.21,597.72,2.68]
[1745492388779,0.29085074,599.2,597.72,2.68]
[1745492391382,1.27288941,599.22,597.72,2.68]
[1745492392683,0.29084952,599.21,597.72,2.68]
[1745492392983,0.29084952,599.21,597.73,1.145]
[1745492394384,1.27288941,599.22,597.73,1.145]
[1745492395679,0.29089207,599.21,597.73,1.145]
[1745492396787,0.29089207,599.21,597.74,1.28]
[1745492397384,1.27288941,599.22,597.74,1.28]
[1745492398881,0.29089085,599.21,597.74,1.28]
[1745492400384,1.27288941,599.22,597.74,1.28]
[1745492401584,1.27288941,599.22,597.75,1.071]
[1745492401779,0.29090058,599.21,597.75,1.071]
[1745492402085,1.27288941,599.11,597.75,1.071]
[1745492404690,1.27288941,598.98,597.75,1.071]
[1745492406687,0.2909626,598.97,597.75,1.071]
[1745492409389,1.27288941,598.99,597.75,1.071]
[1745492410291,1.27288941,599.01,597.75,1.071]
[1745492410688,0.29095895,599.0,597.75,1.071]
[1745492412388,1.27288941,599.01,597.75,1.071]
[1745492413188,1.27288941,599.04,597.75,1.071]
[1745492413694,0.29092611,599.03,597.75,1.071]
[1745492413894,0.29092611,599.03,597.76,1.253]
[1745492415491,1.27288941,599.64,597.76,1.253]
[1745492415693,0.29083737,599.02,597.76,1.253]
[1745492415889,0.29083737,599.02,597.77,1.578]
[1745492416091,1.27288941,599.64,597.77,1.578]
[1745492416696,0.29083615,599.63,597.77,1.578]
[1745492417197,1.27288941,599.3,597.77,1.578]
[1745492419696,0.29087748,599.29,597.77,1.578]
[1745492420094,0.29087748,599.29,597.76,1.253]
[1745492421400,1.27288941,599.63,597.76,1.253]
[1745492421699,0.29083858,599.28,597.76,1.253]
[1745492421901,1.27288941,599.63,597.76,1.253]
[1745492422400,1.27288941,599.62,597.76,1.253]
[1745492422699,1.56372799,599.62,597.76,1.253]
[1745492424396,1.27288941,599.62,597.76,1.253]
[1745492424802,1.27288941,599.36,597.76,1.253]
[1745492425497,1.27288941,599.36,597.17,1.532]
[1745492425698,0.2908714,599.35,597.18,0.30729294]
[1745492425900,0.2908714,599.35,597.43,0.29086532]
[1745492426102,0.2908714,599.35,597.17,1.532]
[1745492426404,0.2908714,599.35,597.18,0.30727497]
[1745492427104,1.27288941,599.26,597.18,0.30727497]
[1745492427497,1.27288941,599.26,597.19,0.29093098]
[1745492427699,1.27288941,599.26,597.2,0.30727497]
[1745492428703,0.29093828,599.25,597.21,0.30727164]
[1745492428898,0.29093828,599.25,597.2,0.30727164]
[1745492429102,0.29093828,599.25,597.21,0.30727164]
[1745492429405,0.29093828,599.25,597.22,0.30727164]
[1745492429601,0.29093828,599.25,597.2,0.30727164]
[1745492429802,0.29093828,599.25,597.21,0.30727164]
[1745492430000,1.27288941,599.0,597.22,0.30727164]
[1745492430203,1.27288941,599.0,597.23,0.30728703]
[1745492430504,1.27288941,599.0,597.24,0.30728703]
[1745492430704,1.27288941,599.0,597.18,0.30728703]
[1745492430902,1.27288941,599.0,597.19,0.30728703]
[1745492431099,1.27288941,599.0,597.2,0.30728703]
[1745492431404,1.27288941,599.0,597.21,0.30728703]
[1745492431604,1.27288941,599.0,597.18,0.30728703]
[1745492431805,0.29097233,598.99,597.19,0.59825749]
[1745492432005,0.29097233,598.99,597.2,0.30728516]
[1745492432402,1.27288941,598.9,597.2,0.30728516]
[1745492433601,1.27288941,598.9,597.18,0.30728516]
[1745492433806,1.27288941,598.9,597.19,0.30728516]
[1745492434008,1.27288941,598.9,597.18,0.30728516]
[1745492434709,0.2909845,598.89,597.19,0.2909845]
[1745492435008,0.2909845,598.89,597.2,0.30728516]
[1745492436605,1.27288941,599.08,597.18,0.30728516]
[1745492436804,1.27288941,599.21,597.19,0.30728516]
[1745492437206,1.27288941,599.21,597.2,0.30728516]
[1745492437407,1.27288941,599.21,597.18,0.30728516]
[1745492437708,1.27288941,599.21,597.17,1.532]
[1745492437709,0.29097841,599.2,597.19,0.59826357]
[1745492438108,0.29097841,599.2,597.2,0.30728516]
[1745492439510,1.27288941,599.21,597.2,0.30728516]
[1745492439712,1.27288941,599.25,597.21,0.30728516]
[1745492439913,1.27288941,599.25,596.93,0.30728516]
[1745492440209,1.27288941,599.25,596.94,0.30728516]
[1745492440414,1.27288941,599.25,596.95,0.30728516]
[1745492440608,1.27288941,599.25,596.96,0.30728516]
[1745492440609,0.29100396,599.24,596.96,0.30728516]
[1745492440809,0.29100396,599.24,596.97,0.30728516]
[1745492441008,0.29100396,599.24,596.97,0.99]
[1745492441614,0.29100396,599.24,596.98,0.30734328]
[1745492441815,1.27288941,598.97,596.98,0.30734328]
[1745492442716,1.27288941,598.97,596.97,0.99]
[1745492443014,1.27288941,598.97,596.98,0.30733023]
[1745492443715,0.29102465,598.96,596.98,0.30733023]
[1745492444216,0.29102465,598.96,596.97,0.99]
[1745492444414,0.29102465,598.96,596.98,0.30734007]
[1745492445510,1.27288941,599.42,596.98,0.30734007]
[1745492446719,0.2909699,599.41,596.98,0.30734007]
[1745492447319,1.27288941,599.06,596.98,0.30734007]
[1745492447519,1.27288941,599.06,596.99,0.30734316]
[1745492447718,1.27288941,599.06,596.97,1.2809699]
[1745492447719,1.27288941,599.06,597.0,0.30734316]
[1745492448019,1.27288941,599.06,597.01,0.30734316]
[1745492448318,1.27288941,599.06,597.02,0.30734316]
[1745492448514,1.27288941,599.06,596.98,0.30734316]
[1745492448717,0.29103804,599.05,596.99,0.5983812]
[1745492449018,0.29103804,599.05,596.99,0.29103804]
[1745492449218,0.29103804,599.05,597.0,0.30736496]
[1745492449718,1.56392745,599.05,597.0,0.30736496]
[1745492450219,1.56392745,599.05,597.01,0.30736496]
[1745492450414,1.56392745,599.05,597.02,0.30736496]
[1745492450613,1.56392745,599.05,596.99,0.29103804]
[1745492450815,1.56392745,599.05,597.0,0.30734714]
[1745492451116,1.56392745,599.05,597.01,0.30734714]
[1745492451417,1.56392745,599.05,596.99,0.29103804]
[1745492451418,1.27288941,599.05,597.02,0.30734714]
[1745492451617,1.27288941,599.05,596.98,0.30734714]
[1745492451817,1.27288941,598.74,597.1,1.05499984]
[1745492452019,1.27288941,598.74,597.11,0.30734714]
[1745492452718,0.29104655,598.73,597.11,0.30734714]
[1745492453718,0.29104655,598.73,597.1,1.05499984]
[1745492453918,0.29104655,598.73,597.11,0.30734341]
[1745492454418,1.27288941,598.74,597.11,0.30734341]
[1745492454612,1.27288941,599.05,597.11,0.30734341]
[1745492454814,1.27288941,599.05,596.98,0.30734341]
[1745492455015,1.27288941,599.05,596.99,0.30734341]
[1745492455319,1.27288941,599.05,596.98,0.30734341]
[1745492455619,1.27288941,599.05,596.99,0.30734341]
[1745492455819,0.29102465,599.04,596.99,0.29102465]
[1745492456120,0.29102465,599.04,597.0,0.30734341]
[1745492456920,0.29102465,599.04,596.99,0.29102465]
[1745492457114,0.29102465,599.04,597.0,0.30734759]
[1745492457514,1.27288941,599.12,597.0,0.30734759]
[1745492457717,1.27288941,599.12,597.01,0.30734759]
[1745492458018,1.27288941,599.12,597.02,0.30734759]
[1745492458219,1.27288941,599.12,596.98,0.30734759]
[1745492458419,1.27288941,599.12,596.99,0.30734759]
[1745492458619,1.27288941,599.12,597.0,0.30734771]
[1745492458821,0.29101613,599.11,596.99,0.29101613]
[1745492459119,0.29101613,599.11,597.0,0.30734771]
[1745492460323,1.27288941,598.89,597.01,1.05499984]
[1745492460521,1.27288941,598.89,597.02,0.30734771]
[1745492462825,1.27288941,599.09,597.02,0.30734771]
[1745492463018,1.27288941,599.09,597.0,0.30734771]
[1745492463218,1.27288941,599.09,597.01,0.30734771]
[1745492463422,1.27288941,599.09,597.0,0.30734771]
[1745492463719,0.29101248,599.08,597.01,0.30734771]
[1745492463919,0.29101248,599.08,597.02,0.30734771]
[1745492464121,0.29101248,599.08,597.03,0.30734771]
[1745492464322,1.27288941,599.05,597.03,0.30734771]
[1745492464523,1.27288941,599.05,597.04,0.30734771]
[1745492464722,1.27288941,599.05,597.05,0.30734771]
[1745492464922,1.27288941,599.05,597.01,0.30734771]
[1745492465122,1.27288941,599.05,597.02,0.30734771]
[1745492465423,1.27288941,599.05,597.03,0.30734771]
[1745492465722,1.27288941,599.05,597.04,0.30734771]
[1745492465919,1.27288941,598.81,597.1,1.05499984]
[1745492466123,1.27288941,598.81,597.11,0.30733772]
[1745492466422,1.27288941,598.81,597.1,1.05499984]
[1745492466623,1.27288941,598.81,597.11,0.30733759]
[1745492467123,0.2910283,598.8,597.11,0.30733759]
[1745492468118,0.2910283,598.8,597.1,0.30733759]
[1745492468423,0.2910283,598.8,597.11,0.30733759]
[1745492468619,0.2910283,598.8,597.1,0.30733759]
[1745492468922,0.2910283,598.8,597.09,1.05499984]
[1745492469119,0.2910283,598.8,597.1,0.30733657]
[1745492469318,0.2910283,598.8,597.11,0.30733657]
[1745492469518,0.2910283,598.8,597.12,0.30733657]
[1745492469821,0.2910283,598.8,597.13,0.30733657]
[1745492470019,0.2910283,598.8,597.1,0.30733657]
[1745492470218,0.2910283,598.8,597.11,0.30733657]
[1745492470424,1.27288941,598.73,597.12,0.30733657]
[1745492470625,1.27288941,598.73,597.16,1.05499984]
[1745492470824,1.27288941,598.73,597.17,0.30732076]
[1745492472924,0.29103073,598.72,597.17,0.30732076]
[1745492473619,0.29103073,598.72,597.1,0.30732076]
[1745492474726,0.29103073,598.72,597.09,0.29103073]
[1745492475026,0.29103073,598.72,597.1,0.30732453]
[1745492475629,1.27288941,599.08,597.04,0.30732453]
[1745492475823,1.27288941,599.08,597.05,0.30732453]
[1745492476028,1.27288941,599.08,597.09,0.29099666]
[1745492476228,2.1656799,599.82,597.09,0.29099666]
[1745492476229,1.27288941,598.76,597.19,1.05499984]
[1745492476428,1.27288941,598.76,597.2,0.30732453]
[1745492476824,0.29102343,598.75,597.2,0.30732453]
[1745492478430,1.27288941,598.76,597.2,0.30732453]
[1745492479928,0.29102343,598.75,597.21,0.30732453]
[1745492480123,0.29102343,598.75,597.22,0.30732453]
[1745492480329,0.29102343,598.75,597.16,0.30732453]
[1745492480522,0.29102343,598.75,597.17,0.30732453]
[1745492480724,0.29102343,598.75,597.16,0.30732453]
[1745492480928,0.29102343,598.75,597.15,1.05499984]
[1745492480929,0.29102343,598.75,597.17,0.30732453]
[1745492481130,0.29102343,598.75,597.16,0.30732453]
[1745492481330,1.27288941,598.76,597.16,0.30732453]
[1745492481530,1.27288941,598.76,597.15,1.05499984]
[1745492481729,0.2910283,598.74,597.16,0.30733141]
[1745492482430,0.2910283,598.74,597.15,0.30733141]
[1745492484533,1.27288941,598.85,597.15,0.30733141]
[1745492484734,1.27288941,598.85,597.12,1.05499984]
[1745492484930,0.29101856,598.73,597.14,0.29101856]
[1745492485234,1.27288941,598.85,597.15,0.30733145]
[1745492486341,1.27288941,598.85,597.14,0.29101856]
[1745492486541,1.27288941,598.85,597.15,0.30734403]
[1745492486936,0.291021,598.84,597.15,0.30734403]
[1745492487136,0.291021,598.84,597.15,1.36234387]
[1745492487340,1.27288941,598.81,597.16,0.30734403]
[1745492487936,1.27288941,598.81,597.17,0.30734711]
[1745492488141,1.27288941,598.81,597.16,0.30734711]
[1745492488341,1.27288941,598.81,597.17,0.30734711]
[1745492488542,1.27288941,598.81,597.16,0.30734711]
[1745492489843,1.27288941,598.81,597.16,1.29534711]
[1745492490046,1.27288941,598.81,597.17,0.30734711]
[1745492490745,0.291021,598.84,597.17,0.30734711]
[1745492491046,0.291021,598.84,597.16,0.988]
[1745492491237,0.291021,598.84,597.17,0.30734096]
[1745492493646,1.27288941,599.03,597.17,0.30734096]
[1745492493847,0.29099423,598.83,597.17,0.30734096]
[1745492494147,1.27288941,599.03,597.17,0.30734096]
[1745492494549,1.27288941,599.26,597.17,0.30734096]
[1745492495355,0.29096625,599.25,597.17,0.30734096]
[1745492496449,1.27288941,599.26,597.17,0.30734096]
[1745492497057,1.27288941,598.9,597.17,0.30734096]
[1745492497757,0.29101005,598.89,597.17,0.30734096]
[1745492499656,1.27288941,598.82,597.17,0.30734096]
[1745492501454,0.29101005,598.89,597.17,0.30734096]
[1745492501958,0.29101005,598.89,597.16,1.27901005]
[1745492502459,1.27288941,599.21,597.16,0.988]
[1745492502859,1.27288941,599.21,597.16,2.129]
[1745492503469,1.27288941,599.21,597.17,0.30742722]
[1745492503654,1.27288941,599.21,597.16,2.129]
[1745492503854,0.29103073,599.2,597.17,0.30743377]
[1745492504560,1.27288941,599.12,597.17,0.30743377]
[1745492505262,1.27288941,599.12,597.16,2.42003073]
[1745492505462,1.27288941,599.12,597.16,2.129]
[1745492506762,0.29105629,599.11,597.16,2.129]
[1745492507563,1.27288941,598.71,597.16,2.129]
[1745492508762,1.27288941,598.71,597.16,3.397]
[1745492510964,1.27288941,598.66,597.16,3.397]
[1745492513365,1.27288941,598.85,597.16,3.397]
[1745492514962,1.27288941,598.85,597.16,4.457]
[1745492515767,1.27288941,598.91,597.16,4.457]
[1745492515968,0.29111838,598.84,597.16,4.457]
[1745492516268,1.27288941,598.91,597.16,4.457]
[1745492517567,0.29112569,598.9,597.16,4.457]
[1745492520469,1.27288941,598.91,597.16,4.457]
[1745492520668,1.27288941,598.93,597.16,4.457]
[1745492521771,0.29113786,598.92,597.16,4.457]
[1745492526574,1.27288941,599.24,597.16,4.457]
[1745492526974,0.29108794,598.91,597.16,4.457]
[1745492527171,1.27288941,599.24,597.16,4.457]
[1745492528473,0.29108794,599.23,597.16,4.457]
[1745492529574,1.27288941,599.24,597.16,4.457]
[1745492529775,0.29105386,599.22,597.16,4.457]
[1745492529976,1.27288941,598.77,597.16,4.457]
[1745492532775,1.27288941,599.16,597.16,4.457]
[1745492536275,2.1656799,598.77,597.16,4.457]
[1745492536473,1.27288941,598.65,597.16,4.457]
[1745492539179,1.27288941,598.69,597.16,4.457]
[1745492539881,0.29113177,598.68,597.16,4.457]
[1745492541380,1.27288941,598.69,597.16,4.457]
[1745492541680,0.29112569,598.67,597.16,4.457]
[1745492544483,1.27288941,598.74,597.16,4.457]
[1745492544883,1.27288941,598.66,597.16,4.457]
[1745492545786,0.29112934,598.65,597.16,4.457]
[1745492547581,1.27288941,598.59,597.16,4.457]
[1745492549686,1.27288941,598.58,597.16,4.457]
[1745492550883,0.29110986,598.57,597.16,4.457]
[1745492553492,1.27288941,598.61,597.16,4.457]
[1745492553886,0.2911062,598.6,597.16,4.457]
[1745492558887,0.2911062,598.6,597.17,0.30743395]
[1745492562588,1.27288941,598.64,597.17,1.80143395]
[1745492562794,1.27288941,598.64,597.18,0.30743395]
[1745492562992,0.29108794,598.59,597.18,0.30743395]
[1745492563293,0.29108794,598.59,597.18,1.67243395]
[1745492563493,0.29108794,598.59,597.18,1.365]
[1745492563791,0.29108794,598.59,597.19,0.30743403]
[1745492564993,0.29108794,598.59,597.18,1.365]
[1745492565194,0.29108794,598.59,597.19,0.30741692]
[1745492565488,1.27288941,598.67,597.19,0.30741692]
[1745492565789,0.29107698,598.58,597.19,0.30741692]
[1745492566094,1.27288941,598.67,597.19,0.30741692]
[1745492566295,1.27288941,598.69,597.19,0.30741692]
[1745492566693,1.27288941,598.69,597.2,1.289]
[1745492566994,0.29107455,598.68,597.21,0.30741692]
[1745492568194,0.29107455,598.68,597.2,1.289]
[1745492568388,0.29107455,598.68,597.21,0.30741963]
[1745492569795,0.29107455,598.68,597.2,1.289]
[1745492569994,0.29107455,598.68,597.21,0.30741783]
[1745492571494,1.27288941,598.77,597.21,0.30741783]
[1745492571694,1.27288941,598.77,597.2,1.289]
[1745492571994,0.29106725,598.67,597.2,1.289]
[1745492572194,1.27288941,598.77,597.2,1.289]
[1745492572895,0.29106725,598.76,597.2,1.289]
[1745492574495,1.27288941,598.83,597.2,1.289]
[1745492574896,0.29107455,598.82,597.2,1.289]
[1745492577494,1.27288941,598.83,597.2,1.289]
[1745492577794,0.29107455,598.81,597.2,1.289]
[1745492580599,1.27288941,599.01,597.2,1.289]
[1745492580803,0.29105264,598.8,597.2,1.289]
[1745492581099,1.27288941,599.01,597.2,1.289]
[1745492581900,0.29105264,599.0,597.2,1.289]
[1745492582098,1.27288941,598.92,597.2,1.289]
[1745492582399,1.27288941,598.92,597.21,1.074]
[1745492584403,1.27288941,598.76,597.21,1.074]
[1745492584904,0.29106725,598.75,597.21,1.074]
[1745492586403,1.56395666,598.75,597.21,1.074]
[1745492586604,1.27288941,598.75,597.21,1.074]
[1745492587802,0.29106846,598.74,597.21,1.074]
[1745492589205,0.29106846,598.74,597.22,0.30742195]
[1745492589401,1.27288941,598.73,597.22,0.30742195]
[1745492589905,0.2910709,598.72,597.21,1.074]
[1745492592805,1.27288941,598.95,597.21,1.074]
[1745492593805,0.29104412,598.94,597.21,1.074]
[1745492594911,0.29104412,598.94,597.22,0.30740749]
[1745492595213,0.29104412,598.94,597.23,0.30740009]
[1745492595408,0.29104412,598.94,597.22,0.30740009]
[1745492596409,0.29104412,598.94,597.23,1.465]
[1745492596612,0.29104412,598.94,597.24,0.30740009]
[1745492597212,1.27288941,598.78,597.24,0.30740009]
[1745492600213,1.27288941,598.59,597.24,0.30740009]
[1745492604117,0.29106603,598.58,597.24,0.30740009]
[1745492604517,0.29106603,598.58,597.25,1.429]
[1745492604719,1.27288941,598.59,597.26,0.30740009]
[1745492605420,1.27288941,598.67,597.26,0.30740009]
[1745492605920,0.29105386,598.66,597.26,0.30740009]
[1745492606822,0.29105386,598.66,597.25,1.429]
[1745492607121,0.29105386,598.66,597.26,0.30737963]
[1745492607321,0.29105386,598.66,597.25,1.429]
[1745492607620,1.27288941,598.67,597.25,1.429]
[1745492607815,0.29108064,598.65,597.25,1.429]
[1745492610522,1.27288941,598.9,597.25,1.429]
[1745492611121,1.27288941,598.95,597.25,1.429]
[1745492611419,1.27288941,598.95,597.26,0.30742388]
[1745492611819,0.29104655,598.94,597.26,0.30742388]
[1745492612618,0.29104655,598.94,597.25,1.429]
[1745492613721,1.27288941,598.95,597.25,1.429]
[1745492613722,1.27288941,598.6,597.25,1.429]
[1745492614821,0.29110864,598.59,597.25,1.429]
[1745492616526,1.27288941,598.9,597.25,1.429]
[1745492617921,0.2911062,598.89,597.25,1.429]
[1745492618324,1.27288941,598.5,597.25,1.429]
[1745492619320,1.27288941,598.5,597.26,1.454]
[1745492619821,0.2911537,598.49,597.26,1.454]
[1745492620325,0.2911537,598.49,597.27,1.08]
[1745492621024,0.2911537,598.49,597.27,2.102]
[1745492625529,1.27288941,599.41,597.27,2.102]
[1745492625926,0.29098571,598.5,597.27,2.102]
[1745492626231,1.27288941,599.41,597.27,2.102]
[1745492626526,1.27288941,599.17,597.27,2.102]
[1745492626930,0.29101005,599.16,597.27,2.102]
[1745492628528,1.27288941,599.17,597.27,2.102]
[1745492628832,0.29100518,599.15,597.27,2.102]
[1745492631531,1.27288941,599.44,597.27,2.102]
[1745492631726,0.29096747,599.14,597.27,2.102]
[1745492631927,0.29096747,599.14,597.28,0.30739307]
[1745492632227,1.27288941,599.44,597.28,0.30739307]
[1745492632429,1.27288941,599.44,597.27,2.102]
[1745492632633,1.27288941,599.23,597.27,2.102]
[1745492635435,1.27288941,599.57,597.27,2.102]
[1745492635838,0.29092976,599.56,597.27,2.102]
[1745492636331,0.29092976,599.56,597.28,0.3073566]
[1745492637636,1.27288941,599.57,597.28,0.3073566]
[1745492637931,1.27288941,599.57,597.27,3.135]
[1745492637932,1.27288941,598.87,597.29,0.30735863]
[1745492638132,1.27288941,598.87,597.3,0.30735863]
[1745492638333,1.27288941,598.87,597.28,0.30735863]
[1745492638637,1.27288941,598.87,597.27,3.135]
[1745492638831,0.29103925,598.86,597.27,3.135]
[1745492640532,1.27288941,598.87,597.27,3.135]
[1745492640938,1.27288941,599.17,597.27,3.135]
[1745492641839,0.29098085,599.16,597.27,3.135]
[1745492642039,0.29098085,599.16,597.27,4.537]
[1745492644041,0.29098085,599.16,597.28,0.30736737]
[1745492645443,1.27288941,598.97,597.28,0.30736737]
[1745492646344,1.27288941,598.97,597.27,4.537]
[1745492647044,0.29100518,598.96,597.27,4.537]
[1745492651751,0.29100518,598.96,597.28,0.30734197]
[1745492652550,1.27288941,599.95,597.28,0.30734197]
[1745492653053,1.27288941,598.99,597.28,0.30734197]
[1745492653550,1.27288941,598.99,597.27,3.504]
[1745492653747,1.27288941,598.99,597.29,0.30733961]
[1745492653952,1.27288941,598.99,597.3,0.30733961]
[1745492654153,1.27288941,598.99,597.28,0.30733961]
[1745492654351,1.27288941,598.99,597.3,1.43]
[1745492654556,1.27288941,598.99,597.31,0.30733961]
[1745492654958,1.27288941,598.96,597.31,0.30733961]
[1745492655158,1.27288941,598.96,597.3,1.43]
[1745492655956,0.29098571,598.95,597.3,1.43]
[1745492658557,1.27288941,599.58,597.3,1.43]
[1745492658853,0.29091031,598.94,597.3,1.43]
[1745492659157,1.27288941,599.58,597.3,1.43]
[1745492659458,1.27288941,599.54,597.3,1.43]
[1745492659953,0.29091517,599.53,597.3,1.43]
[1745492660758,0.29091517,599.53,597.31,0.30730881]
[1745492661659,1.27288941,599.54,597.31,0.30730881]
[1745492661960,0.29090666,599.52,597.3,1.43]
[1745492662156,0.29090666,599.52,597.3,1.72090301]
[1745492662455,0.29090666,599.52,597.31,0.30727235]
[1745492663262,1.27288941,599.51,597.3,1.72090301]
[1745492663462,1.27288941,599.51,597.31,0.30721859]
[1745492664961,0.29087262,599.5,597.31,0.30721859]
[1745492666563,0.29087262,599.5,597.32,0.30721498]
[1745492667062,0.29087262,599.5,597.32,0.30098955]
[1745492667563,0.29087262,599.5,597.31,1.568]
[1745492667964,0.29087262,599.5,597.32,0.30715182]
[1745492668258,0.29087262,599.5,597.33,0.30715181]
[1745492668458,0.29087262,599.5,597.34,0.30715181]
[1745492668659,1.27288941,599.36,597.35,0.30715181]
[1745492668859,1.27288941,599.36,597.32,0.30715181]
[1745492669059,1.27288941,599.36,597.33,0.30715181]
[1745492669258,1.27288941,599.36,597.34,0.30715181]
[1745492669461,1.27288941,599.36,597.35,0.30715181]
[1745492669662,1.27288941,599.36,597.31,1.568]
[1745492669863,1.27288941,599.36,597.32,0.30713975]
[1745492670163,1.27288941,599.36,597.33,0.30713975]
[1745492670362,1.27288941,599.36,597.34,0.30713975]
[1745492670562,1.27288941,599.36,597.35,0.30713975]
[1745492670862,1.27288941,599.36,597.36,0.30713975]
[1745492671063,1.27288941,599.36,597.37,0.30713975]
[1745492671262,1.27288941,599.36,597.38,0.30713975]
[1745492671462,1.27288941,599.36,597.39,0.30713975]
[1745492671663,1.27288941,599.36,597.4,0.30713975]
[1745492671866,0.29081671,599.35,597.41,0.30713975]
[1745492672060,0.29081671,599.35,597.42,0.30713975]
[1745492672364,0.29081671,599.35,597.43,0.30713975]
[1745492672564,0.29081671,599.35,597.44,0.30713975]
[1745492672766,0.29081671,599.35,597.45,0.30713975]
[1745492673064,0.29081671,599.35,597.46,0.30713975]
[1745492673364,0.29081671,599.35,597.47,0.30713975]
[1745492673565,1.27288941,599.41,597.48,0.30713975]
[1745492673759,1.27288941,599.41,597.49,0.30713975]
[1745492673963,1.27288941,599.41,597.5,0.30713975]
[1745492674162,1.27288941,599.41,597.51,0.30713975]
[1745492674360,1.27288941,599.41,597.52,0.30713975]
[1745492674565,1.27288941,599.41,597.53,0.30713975]
[1745492674867,0.29080091,599.4,597.54,0.30713975]
[1745492675060,0.29080091,599.4,597.4,0.30713975]
[1745492675264,0.29080091,599.4,597.41,0.30713975]
[1745492675463,0.29080091,599.4,597.4,0.30713975]
[1745492676160,0.29080091,599.4,597.39,0.2907997]
[1745492676366,0.29080091,599.4,597.4,0.30709613]
[1745492676563,1.27288941,599.78,597.4,0.30709613]
[1745492676766,1.27288941,599.78,597.32,0.30709613]
[1745492676966,0.29078755,599.77,597.39,0.29078755]
[1745492677266,0.29078755,599.77,597.4,0.30709613]
[1745492677462,0.29078755,599.77,597.32,0.30709613]
[1745492677665,0.29078755,599.77,597.33,0.30709613]
[1745492677866,0.29078755,599.77,597.34,0.30709613]
[1745492678166,0.29078755,599.77,597.35,0.30709613]
[1745492678365,0.29078755,599.77,597.36,0.30709613]
[1745492678562,0.29078755,599.77,597.37,0.30709613]
[1745492678761,0.29078755,599.77,597.38,0.30709613]
[1745492678960,0.29078755,599.77,597.39,0.30709613]
[1745492679267,0.29078755,599.77,597.36,0.29078755]
[1745492679467,0.29078755,599.77,597.37,0.30710486]
[1745492679667,0.29078755,599.77,597.36,0.29078755]
[1745492679668,1.27288941,599.96,597.38,0.30710486]
[1745492679966,0.29075961,599.76,597.39,0.30710486]
[1745492680167,1.27288941,599.96,597.4,0.30710486]
[1745492680368,1.27288941,599.96,597.41,0.30710486]
[1745492680564,1.27288941,599.96,597.42,0.30710486]
[1745492680764,1.27288941,599.96,597.37,0.30710486]
[1745492680969,0.29075961,599.95,597.36,0.29075961]
[1745492681170,0.29075961,599.95,597.37,0.30710618]
[1745492681466,0.29075961,599.95,597.38,0.30710618]
[1745492681670,1.27288941,599.89,597.39,0.30710618]
[1745492681871,1.27288941,599.89,597.4,0.30710618]
[1745492682070,1.27288941,599.89,597.41,0.30710618]
[1745492682272,1.27288941,599.89,597.42,0.30710618]
[1745492682472,1.27288941,599.89,597.43,0.30710618]
[1745492682675,1.27288941,599.89,597.44,0.30710618]
[1745492682876,0.29077054,599.88,597.45,0.30710618]
[1745492683071,0.29077054,599.88,597.46,0.30710618]
[1745492683377,0.29077054,599.88,597.47,0.30710618]
[1745492683572,0.29077054,599.88,597.41,0.30710618]
[1745492683871,1.27288941,599.85,597.42,0.30710618]
[1745492684076,1.27288941,599.85,597.4,1.158]